[Event "*** SCC Grand Prix: Titled Tuesday Blitz"]
[Site "Chess.com"]
[Date "2020.10.13"]
[Round "6"]
[White "baki83"]
[Black "Superfelix"]
[Result "1-0"]
[WhiteElo "2756"]
[BlackElo "2487"]
[TimeControl "180+1"]
[EndTime "11:02:04 PDT"]
[Termination "baki83 won by resignation"]

1. e4 {[%clk 0:02:51.5]} 1... c6 {[%clk 0:02:59.9]} 2. Nf3 {[%clk 0:02:51.3]}
2... g6 {[%clk 0:03:00.3]} 3. d3 {[%clk 0:02:52.2]} 3... d5 {[%clk 0:03:00.8]}
4. h4 {[%clk 0:02:47.9]} 4... h5 {[%clk 0:02:58]} 5. Nbd2 {[%clk 0:02:45.1]}
5... Bg7 {[%clk 0:02:57.3]} 6. c3 {[%clk 0:02:44.7]} 6... b6 {[%clk 0:02:56.2]}
7. Qc2 {[%clk 0:02:41.3]} 7... Nd7 {[%clk 0:02:55.1]} 8. d4 {[%clk 0:02:38.6]}
8... dxe4 {[%clk 0:02:54.8]} 9. Nxe4 {[%clk 0:02:37.6]} 9... Ngf6 {[%clk
0:02:54.3]} 10. Neg5 {[%clk 0:02:37.2]} 10... Nd5 {[%clk 0:02:38.4]} 11. Ne6
{[%clk 0:02:26.1]} 11... fxe6 {[%clk 0:02:36.3]} 12. Qxg6+ {[%clk 0:02:25.4]}
12... Kf8 {[%clk 0:02:36.8]} 13. Ng5 {[%clk 0:02:25.5]} 13... Ne5 {[%clk
0:02:29.9]} 14. dxe5 {[%clk 0:02:25]} 14... Qe8 {[%clk 0:02:29.5]} 15. Nh7+
{[%clk 0:02:19.2]} 15... Rxh7 {[%clk 0:02:27.7]} 16. Qxh7 {[%clk 0:02:20.1]}
16... c5 {[%clk 0:02:24.9]} 17. Bh6 {[%clk 0:02:17.2]} 17... Qf7 {[%clk
0:02:22.8]} 18. Qh8+ {[%clk 0:02:16.4]} 1-0

[Event "*** SCC Grand Prix: Titled Tuesday Blitz"]
[Site "Chess.com"]
[Date "2020.10.13"]
[Round "6"]
[White "Shield12"]
[Black "tlomigtlis"]
[Result "1-0"]
[WhiteElo "2829"]
[BlackElo "2636"]
[TimeControl "180+1"]
[EndTime "11:02:53 PDT"]
[Termination "Shield12 won by checkmate"]

1. e4 {[%clk 0:03:00.9]} 1... c5 {[%clk 0:03:00.1]} 2. Nf3 {[%clk 0:03:00.9]}
2... d6 {[%clk 0:03:00.5]} 3. d4 {[%clk 0:03:00.8]} 3... cxd4 {[%clk 0:03:01.4]}
4. Qxd4 {[%clk 0:03:01.6]} 4... a6 {[%clk 0:03:01]} 5. Be2 {[%clk 0:03:00.2]}
5... Nc6 {[%clk 0:03:01.3]} 6. Qe3 {[%clk 0:03:00.1]} 6... g6 {[%clk 0:03:01.8]}
7. h3 {[%clk 0:02:59.7]} 7... Bg7 {[%clk 0:02:59.3]} 8. O-O {[%clk 0:02:59.6]}
8... Nf6 {[%clk 0:02:59.5]} 9. c4 {[%clk 0:02:59.7]} 9... O-O {[%clk 0:02:58.6]}
10. Nc3 {[%clk 0:03:00.1]} 10... Nd7 {[%clk 0:02:58.1]} 11. Rd1 {[%clk
0:02:59.6]} 11... b6 {[%clk 0:02:58.3]} 12. b3 {[%clk 0:02:59.3]} 12... Bb7
{[%clk 0:02:58.7]} 13. Bb2 {[%clk 0:02:59.6]} 13... Nc5 {[%clk 0:02:56.9]} 14.
Rac1 {[%clk 0:02:58.8]} 14... Ne6 {[%clk 0:02:54.9]} 15. Qd2 {[%clk 0:02:55]}
15... Qd7 {[%clk 0:02:51.6]} 16. Nd5 {[%clk 0:02:53.8]} 16... Qd8 {[%clk
0:02:49.4]} 17. Bxg7 {[%clk 0:02:52.4]} 17... Kxg7 {[%clk 0:02:50.3]} 18. Qe3
{[%clk 0:02:50.4]} 18... b5 {[%clk 0:02:47.2]} 19. cxb5 {[%clk 0:02:49.8]} 19...
axb5 {[%clk 0:02:48.1]} 20. Bxb5 {[%clk 0:02:50]} 20... Ne5 {[%clk 0:02:48.7]}
21. Nxe5 {[%clk 0:02:49.2]} 21... dxe5 {[%clk 0:02:49.6]} 22. Nb6 {[%clk
0:02:40.7]} 22... Nd4 {[%clk 0:02:46.3]} 23. Nxa8 {[%clk 0:02:40.6]} 23... Qxa8
{[%clk 0:02:45.6]} 24. Rxd4 {[%clk 0:02:40.4]} 24... exd4 {[%clk 0:02:44.9]} 25.
Qxd4+ {[%clk 0:02:41.3]} 25... f6 {[%clk 0:02:45.2]} 26. Rc7 {[%clk 0:02:39.3]}
26... Rf7 {[%clk 0:02:30.1]} 27. Bc4 {[%clk 0:02:31.7]} 27... Rf8 {[%clk
0:02:30.3]} 28. Rxe7+ {[%clk 0:02:30]} 28... Kh8 {[%clk 0:02:31.2]} 29. e5
{[%clk 0:02:21.8]} 29... Rd8 {[%clk 0:02:21.6]} 30. Rxh7+ {[%clk 0:02:02.2]}
30... Kxh7 {[%clk 0:02:18.4]} 31. Qh4+ {[%clk 0:02:03.1]} 31... Kg7 {[%clk
0:02:18.8]} 32. exf6+ {[%clk 0:02:04]} 32... Kf8 {[%clk 0:02:17.4]} 33. Qh8#
{[%clk 0:02:04.9]} 1-0

[Event "*** SCC Grand Prix: Titled Tuesday Blitz"]
[Site "Chess.com"]
[Date "2020.10.13"]
[Round "6"]
[White "Natalya_Buksa"]
[Black "vovachesss"]
[Result "0-1"]
[WhiteElo "2513"]
[BlackElo "2681"]
[TimeControl "180+1"]
[EndTime "11:02:57 PDT"]
[Termination "vovachesss won by resignation"]

1. d4 {[%clk 0:03:00.9]} 1... Nf6 {[%clk 0:02:59.4]} 2. Nc3 {[%clk 0:03:00.5]}
2... d5 {[%clk 0:02:59.4]} 3. Bf4 {[%clk 0:03:00.9]} 3... a6 {[%clk 0:02:56.8]}
4. e3 {[%clk 0:03:01.2]} 4... c5 {[%clk 0:02:57]} 5. Nf3 {[%clk 0:03:01.6]} 5...
Nc6 {[%clk 0:02:55.7]} 6. dxc5 {[%clk 0:03:01.9]} 6... e6 {[%clk 0:02:52.4]} 7.
Na4 {[%clk 0:03:02.3]} 7... Bxc5 {[%clk 0:02:52.4]} 8. Nxc5 {[%clk 0:03:01.8]}
8... Qa5+ {[%clk 0:02:53.1]} 9. c3 {[%clk 0:03:00]} 9... Qxc5 {[%clk 0:02:53.7]}
10. Bd3 {[%clk 0:03:00.6]} 10... O-O {[%clk 0:02:54.1]} 11. O-O {[%clk 0:03:01]}
11... Re8 {[%clk 0:02:54.3]} 12. Ne5 {[%clk 0:03:00.8]} 12... Nxe5 {[%clk
0:02:14.8]} 13. Bxe5 {[%clk 0:02:59.1]} 13... Nd7 {[%clk 0:02:14.4]} 14. Bg3
{[%clk 0:02:50]} 14... e5 {[%clk 0:02:02.7]} 15. Bc2 {[%clk 0:02:49.7]} 15...
Nf6 {[%clk 0:01:59.2]} 16. Qf3 {[%clk 0:02:40.8]} 16... Bg4 {[%clk 0:01:53.6]}
17. b4 {[%clk 0:02:26.4]} 17... Qc6 {[%clk 0:01:47.5]} 18. b5 {[%clk 0:02:16.5]}
18... axb5 {[%clk 0:01:47]} 19. Bxh7+ {[%clk 0:02:01.5]} 19... Kxh7 {[%clk
0:01:47.9]} 0-1

[Event "*** SCC Grand Prix: Titled Tuesday Blitz"]
[Site "Chess.com"]
[Date "2020.10.13"]
[Round "6"]
[White "NikolaGry"]
[Black "Zkid"]
[Result "0-1"]
[WhiteElo "2631"]
[BlackElo "2816"]
[TimeControl "180+1"]
[EndTime "11:03:23 PDT"]
[Termination "Zkid won by resignation"]

1. d4 {[%clk 0:03:00.9]} 1... d5 {[%clk 0:02:59.3]} 2. Nf3 {[%clk 0:02:59.4]}
2... Nf6 {[%clk 0:02:58.9]} 3. c4 {[%clk 0:02:59.2]} 3... dxc4 {[%clk
0:02:59.8]} 4. Qa4+ {[%clk 0:02:53.5]} 4... c6 {[%clk 0:02:58.2]} 5. Qxc4 {[%clk
0:02:52.8]} 5... Bf5 {[%clk 0:02:53.9]} 6. e3 {[%clk 0:02:42.7]} 6... e6 {[%clk
0:02:53]} 7. Bd3 {[%clk 0:02:39.1]} 7... Bxd3 {[%clk 0:02:45.8]} 8. Qxd3 {[%clk
0:02:39.2]} 8... Nbd7 {[%clk 0:02:46.4]} 9. O-O {[%clk 0:02:36.1]} 9... Bd6
{[%clk 0:02:45.7]} 10. Nc3 {[%clk 0:02:35.2]} 10... O-O {[%clk 0:02:42.2]} 11.
e4 {[%clk 0:02:28.2]} 11... e5 {[%clk 0:02:39.8]} 12. Bg5 {[%clk 0:02:27.1]}
12... exd4 {[%clk 0:02:30.6]} 13. Qxd4 {[%clk 0:02:24.1]} 13... Bc5 {[%clk
0:02:27.5]} 14. Qd2 {[%clk 0:01:59.5]} 14... h6 {[%clk 0:02:19.5]} 15. Bh4
{[%clk 0:01:55.7]} 15... Ne5 {[%clk 0:02:09.2]} 16. Qxd8 {[%clk 0:01:46.5]}
16... Nxf3+ {[%clk 0:02:09.1]} 17. gxf3 {[%clk 0:01:46.5]} 17... Rfxd8 {[%clk
0:02:09.4]} 18. Rfd1 {[%clk 0:01:43.5]} 18... Bd4 {[%clk 0:02:02.4]} 19. Rd3
{[%clk 0:01:26.5]} 19... Bxf2+ {[%clk 0:02:01.5]} 0-1

[Event "*** SCC Grand Prix: Titled Tuesday Blitz"]
[Site "Chess.com"]
[Date "2020.10.13"]
[Round "6"]
[White "Colombiano07"]
[Black "Evachess2006"]
[Result "1-0"]
[WhiteElo "2243"]
[BlackElo "1619"]
[TimeControl "180+1"]
[EndTime "11:03:29 PDT"]
[Termination "Colombiano07 won by checkmate"]

1. d4 {[%clk 0:03:00.9]} 1... d5 {[%clk 0:02:11.9]} 2. Nc3 {[%clk 0:02:48.4]}
2... Nf6 {[%clk 0:01:59.9]} 3. Bg5 {[%clk 0:02:47.9]} 3... h6 {[%clk 0:01:48.3]}
4. Bxf6 {[%clk 0:02:47.7]} 4... exf6 {[%clk 0:01:49]} 5. e3 {[%clk 0:02:46.7]}
5... Bb4 {[%clk 0:01:46.8]} 6. Ne2 {[%clk 0:02:44.3]} 6... O-O {[%clk
0:01:38.8]} 7. a3 {[%clk 0:02:44.1]} 7... Ba5 {[%clk 0:01:34.6]} 8. b4 {[%clk
0:02:42.5]} 8... Bb6 {[%clk 0:01:35.5]} 9. Nf4 {[%clk 0:02:42.1]} 9... c6 {[%clk
0:01:35.6]} 10. Bd3 {[%clk 0:02:41.7]} 10... Be6 {[%clk 0:01:34.1]} 11. Qh5
{[%clk 0:02:27.8]} 11... Nd7 {[%clk 0:01:25.1]} 12. Nxe6 {[%clk 0:02:09.3]}
12... fxe6 {[%clk 0:01:09.6]} 13. Qg6 {[%clk 0:02:09.5]} 13... Qe7 {[%clk
0:00:59.4]} 14. Qh7+ {[%clk 0:02:07.7]} 14... Kf7 {[%clk 0:00:54.3]} 15. Bg6#
{[%clk 0:02:08.6]} 1-0

[Event "*** SCC Grand Prix: Titled Tuesday Blitz"]
[Site "Chess.com"]
[Date "2020.10.13"]
[Round "6"]
[White "Balla_Tamas"]
[Black "wanyaland"]
[Result "1-0"]
[WhiteElo "2460"]
[BlackElo "2294"]
[TimeControl "180+1"]
[EndTime "11:03:33 PDT"]
[Termination "Balla_Tamas won by resignation"]

1. d4 {[%clk 0:03:00.9]} 1... d5 {[%clk 0:02:59.4]} 2. Bf4 {[%clk 0:03:00.3]}
2... c5 {[%clk 0:02:58.8]} 3. e3 {[%clk 0:03:00]} 3... Nc6 {[%clk 0:02:58.1]} 4.
c3 {[%clk 0:02:59.4]} 4... Nf6 {[%clk 0:02:56.4]} 5. Bd3 {[%clk 0:02:56]} 5...
e6 {[%clk 0:02:55.9]} 6. Nd2 {[%clk 0:02:55.3]} 6... Bd6 {[%clk 0:02:47.1]} 7.
Bg3 {[%clk 0:02:53.3]} 7... Qe7 {[%clk 0:02:45.3]} 8. Ngf3 {[%clk 0:02:53]} 8...
e5 {[%clk 0:02:41]} 9. dxe5 {[%clk 0:02:52.7]} 9... Nxe5 {[%clk 0:02:41.7]} 10.
Nxe5 {[%clk 0:02:51]} 10... Bxe5 {[%clk 0:02:42.3]} 11. Bxe5 {[%clk 0:02:51.1]}
11... Qxe5 {[%clk 0:02:42.8]} 12. Bb5+ {[%clk 0:02:51.1]} 12... Bd7 {[%clk
0:02:42.3]} 13. Nf3 {[%clk 0:02:51.1]} 13... Qh5 {[%clk 0:02:39.1]} 14. Bxd7+
{[%clk 0:02:49.8]} 14... Nxd7 {[%clk 0:02:40]} 15. Qb3 {[%clk 0:02:49.2]} 15...
O-O-O {[%clk 0:02:37]} 16. O-O-O {[%clk 0:02:46.1]} 16... Nb6 {[%clk 0:02:35.2]}
17. Qa3 {[%clk 0:02:45.2]} 17... c4 {[%clk 0:02:13.9]} 18. Qxa7 {[%clk
0:02:42.7]} 18... Kc7 {[%clk 0:02:14.1]} 19. Qa5 {[%clk 0:02:42]} 19... Rd6
{[%clk 0:02:10.7]} 20. Nd4 {[%clk 0:02:35.6]} 20... Kb8 {[%clk 0:02:09.4]} 21.
Nb5 {[%clk 0:02:34.1]} 21... Rc6 {[%clk 0:02:09]} 22. a4 {[%clk 0:02:21.3]}
22... Re8 {[%clk 0:02:02.7]} 23. Qa7+ {[%clk 0:02:11]} 23... Kc8 {[%clk
0:02:01.3]} 24. a5 {[%clk 0:02:09.8]} 24... Nd7 {[%clk 0:02:00.2]} 25. Qa8+
{[%clk 0:02:08.3]} 25... Nb8 {[%clk 0:02:00.2]} 26. Na7+ {[%clk 0:02:06.7]}
26... Kc7 {[%clk 0:02:00.9]} 27. Nxc6 {[%clk 0:02:05.8]} 27... Kxc6 {[%clk
0:01:52.2]} 28. Qa7 {[%clk 0:02:01.9]} 28... Kc7 {[%clk 0:01:49.2]} 29. Qc5+
{[%clk 0:02:00]} 1-0

[Event "*** SCC Grand Prix: Titled Tuesday Blitz"]
[Site "Chess.com"]
[Date "2020.10.13"]
[Round "6"]
[White "BJthechessgod"]
[Black "WonderChampion"]
[Result "1-0"]
[WhiteElo "2253"]
[BlackElo "2013"]
[TimeControl "180+1"]
[EndTime "11:04:03 PDT"]
[Termination "BJthechessgod won by checkmate"]

1. e4 {[%clk 0:03:00.9]} 1... c5 {[%clk 0:02:58.8]} 2. Nf3 {[%clk 0:02:57.7]}
2... g6 {[%clk 0:02:58.4]} 3. d4 {[%clk 0:02:57.5]} 3... cxd4 {[%clk 0:02:59.3]}
4. Nxd4 {[%clk 0:02:58.1]} 4... Nc6 {[%clk 0:02:58.1]} 5. Nc3 {[%clk 0:02:55.7]}
5... Bg7 {[%clk 0:02:52.3]} 6. Be3 {[%clk 0:02:55.7]} 6... Nf6 {[%clk
0:02:50.7]} 7. Bc4 {[%clk 0:02:55.3]} 7... O-O {[%clk 0:02:49.9]} 8. Bb3 {[%clk
0:02:55.4]} 8... d6 {[%clk 0:02:47.7]} 9. f3 {[%clk 0:02:55.5]} 9... Bd7 {[%clk
0:02:44.8]} 10. Qd2 {[%clk 0:02:55.7]} 10... Bh8 {[%clk 0:02:42.9]} 11. O-O-O
{[%clk 0:02:26]} 11... a6 {[%clk 0:02:41.8]} 12. g4 {[%clk 0:02:21.2]} 12... b5
{[%clk 0:02:37.7]} 13. h4 {[%clk 0:02:19.4]} 13... b4 {[%clk 0:02:35.8]} 14. Nd5
{[%clk 0:02:16.5]} 14... a5 {[%clk 0:02:30.3]} 15. h5 {[%clk 0:01:42.6]} 15...
a4 {[%clk 0:02:25.7]} 16. hxg6 {[%clk 0:01:38.9]} 16... hxg6 {[%clk 0:02:20.1]}
17. Qh2 {[%clk 0:01:38.2]} 17... Nh5 {[%clk 0:01:46.4]} 18. gxh5 {[%clk
0:01:34.7]} 18... axb3 {[%clk 0:01:30.1]} 19. hxg6 {[%clk 0:01:29.2]} 19... Kg7
{[%clk 0:01:15]} 20. Qh7# {[%clk 0:01:26.3]} 1-0

[Event "*** SCC Grand Prix: Titled Tuesday Blitz"]
[Site "Chess.com"]
[Date "2020.10.13"]
[Round "6"]
[White "elohunter1999"]
[Black "Gabix_94"]
[Result "0-1"]
[WhiteElo "2609"]
[BlackElo "2787"]
[TimeControl "180+1"]
[EndTime "11:04:24 PDT"]
[Termination "Gabix_94 won by resignation"]

1. e4 {[%clk 0:03:00.9]} 1... c5 {[%clk 0:02:59.7]} 2. Nf3 {[%clk 0:03:00.8]}
2... d6 {[%clk 0:02:59.3]} 3. d4 {[%clk 0:03:01.2]} 3... cxd4 {[%clk 0:03:00.2]}
4. Nxd4 {[%clk 0:03:02.1]} 4... Nf6 {[%clk 0:03:00]} 5. Nc3 {[%clk 0:03:02.7]}
5... Nc6 {[%clk 0:03:00.6]} 6. Bg5 {[%clk 0:03:03.1]} 6... Bd7 {[%clk 0:03:01]}
7. Qd2 {[%clk 0:03:03.1]} 7... Rc8 {[%clk 0:02:57.7]} 8. f4 {[%clk 0:03:03.4]}
8... Nxd4 {[%clk 0:02:51.5]} 9. Qxd4 {[%clk 0:03:04.3]} 9... Qa5 {[%clk
0:02:51.9]} 10. e5 {[%clk 0:03:04.3]} 10... dxe5 {[%clk 0:02:46.1]} 11. fxe5
{[%clk 0:03:05.2]} 11... e6 {[%clk 0:02:46.6]} 12. O-O-O {[%clk 0:02:59.6]}
12... Bc6 {[%clk 0:02:43.4]} 13. Nb5 {[%clk 0:02:23.3]} 13... Nd5 {[%clk
0:02:22.7]} 14. Qxa7 {[%clk 0:01:13.9]} 14... Qb4 {[%clk 0:02:20.5]} 15. Be2
{[%clk 0:00:22.4]} 15... Bc5 {[%clk 0:02:11.8]} 16. a3 {[%clk 0:00:22.2]} 16...
Qxb5 {[%clk 0:02:08.5]} 17. Bxb5 {[%clk 0:00:15.2]} 17... Bxa7 {[%clk
0:02:07.4]} 18. Bxc6+ {[%clk 0:00:13.8]} 18... Rxc6 {[%clk 0:02:08.3]} 19. Kb1
{[%clk 0:00:12.5]} 19... O-O {[%clk 0:02:07.3]} 0-1

[Event "*** SCC Grand Prix: Titled Tuesday Blitz"]
[Site "Chess.com"]
[Date "2020.10.13"]
[Round "6"]
[White "PlotnikovPavel"]
[Black "CzechmVIII"]
[Result "1-0"]
[WhiteElo "2379"]
[BlackElo "2171"]
[TimeControl "180+1"]
[EndTime "11:04:52 PDT"]
[Termination "PlotnikovPavel won by resignation"]

1. e4 {[%clk 0:03:00.9]} 1... c5 {[%clk 0:03:00]} 2. Nc3 {[%clk 0:02:57.9]} 2...
Nc6 {[%clk 0:02:59.5]} 3. Bb5 {[%clk 0:02:57.6]} 3... Nd4 {[%clk 0:02:59.5]} 4.
Nf3 {[%clk 0:02:58]} 4... a6 {[%clk 0:02:56.5]} 5. Bd3 {[%clk 0:02:56.1]} 5...
g6 {[%clk 0:02:49.4]} 6. O-O {[%clk 0:02:56]} 6... Bg7 {[%clk 0:02:48.9]} 7. b3
{[%clk 0:02:54.8]} 7... Nxf3+ {[%clk 0:02:37.4]} 8. Qxf3 {[%clk 0:02:55.7]} 8...
d6 {[%clk 0:02:37.6]} 9. Bb2 {[%clk 0:02:54.1]} 9... Nf6 {[%clk 0:02:37.3]} 10.
a4 {[%clk 0:02:50.8]} 10... O-O {[%clk 0:02:35.7]} 11. Bc4 {[%clk 0:02:50.7]}
11... Bg4 {[%clk 0:02:21.8]} 12. Qg3 {[%clk 0:02:50.5]} 12... Be6 {[%clk
0:02:21.4]} 13. d3 {[%clk 0:02:47.7]} 13... Bxc4 {[%clk 0:02:17.8]} 14. bxc4
{[%clk 0:02:48.6]} 14... Nd7 {[%clk 0:02:12.6]} 15. Rab1 {[%clk 0:02:47.1]}
15... Re8 {[%clk 0:01:49.4]} 16. Nd5 {[%clk 0:02:38.6]} 16... e6 {[%clk
0:01:18.9]} 17. Ne3 {[%clk 0:02:36.9]} 17... Ne5 {[%clk 0:01:02.6]} 18. f4
{[%clk 0:02:33.6]} 18... Nc6 {[%clk 0:01:02.9]} 19. Bxg7 {[%clk 0:02:31.2]}
19... Kxg7 {[%clk 0:01:03.8]} 20. Rxb7 {[%clk 0:02:31.2]} 20... Nd4 {[%clk
0:00:55.6]} 21. Qf2 {[%clk 0:02:29.5]} 21... Rb8 {[%clk 0:00:49.9]} 22. Rxb8
{[%clk 0:02:28.1]} 22... Qxb8 {[%clk 0:00:50.8]} 23. f5 {[%clk 0:02:28.7]} 23...
exf5 {[%clk 0:00:35.7]} 24. exf5 {[%clk 0:02:29.6]} 24... Rxe3 {[%clk
0:00:18.7]} 25. f6+ {[%clk 0:02:26.3]} 25... Kh8 {[%clk 0:00:11.7]} 26. Qxe3
{[%clk 0:02:27.2]} 26... Nf5 {[%clk 0:00:06]} 27. Qg5 {[%clk 0:02:12.5]} 27...
Qb2 {[%clk 0:00:03.6]} 28. Rxf5 {[%clk 0:02:08.1]} 28... Qb1+ {[%clk 0:00:03.7]}
29. Rf1 {[%clk 0:02:07.1]} 1-0

[Event "*** SCC Grand Prix: Titled Tuesday Blitz"]
[Site "Chess.com"]
[Date "2020.10.13"]
[Round "6"]
[White "RoelandPruijssers"]
[Black "tk22h"]
[Result "1-0"]
[WhiteElo "2482"]
[BlackElo "2318"]
[TimeControl "180+1"]
[EndTime "11:04:59 PDT"]
[Termination "RoelandPruijssers won by checkmate"]

1. e4 {[%clk 0:03:00.9]} 1... e5 {[%clk 0:02:59.1]} 2. f4 {[%clk 0:02:51.3]}
2... d5 {[%clk 0:02:57.9]} 3. exd5 {[%clk 0:02:49.9]} 3... exf4 {[%clk 0:02:58]}
4. Nf3 {[%clk 0:02:47]} 4... Nf6 {[%clk 0:02:57.6]} 5. Bc4 {[%clk 0:02:44.5]}
5... Nxd5 {[%clk 0:02:57.2]} 6. O-O {[%clk 0:02:43.1]} 6... Be6 {[%clk 0:02:57]}
7. d4 {[%clk 0:02:11.4]} 7... g5 {[%clk 0:02:50.8]} 8. Re1 {[%clk 0:01:53.9]}
8... Bg7 {[%clk 0:02:49.2]} 9. Nc3 {[%clk 0:01:51.2]} 9... Nxc3 {[%clk
0:02:48.1]} 10. bxc3 {[%clk 0:01:49.6]} 10... O-O {[%clk 0:02:45.1]} 11. Rxe6
{[%clk 0:01:39.6]} 11... fxe6 {[%clk 0:02:42.3]} 12. Bxe6+ {[%clk 0:01:40.5]}
12... Kh8 {[%clk 0:02:42.2]} 13. Qd3 {[%clk 0:01:27.8]} 13... Nc6 {[%clk
0:02:31.1]} 14. Ba3 {[%clk 0:01:20]} 14... Qf6 {[%clk 0:02:19]} 15. Bxf8 {[%clk
0:01:10.7]} 15... Rxf8 {[%clk 0:02:18.9]} 16. Re1 {[%clk 0:01:09.4]} 16... h6
{[%clk 0:02:14.5]} 17. Bg4 {[%clk 0:01:04.7]} 17... Qd6 {[%clk 0:02:10.1]} 18.
Re6 {[%clk 0:01:03.2]} 18... Qa3 {[%clk 0:02:00.5]} 19. Qg6 {[%clk 0:01:00.6]}
19... Qxc3 {[%clk 0:01:51.3]} 20. Bf5 {[%clk 0:00:56.9]} 20... Kg8 {[%clk
0:01:07.7]} 21. Qh7+ {[%clk 0:00:48.6]} 21... Kf7 {[%clk 0:01:07.3]} 22. Rf6+
{[%clk 0:00:48.9]} 22... Kxf6 {[%clk 0:01:06.4]} 23. Qg6+ {[%clk 0:00:49.3]}
23... Ke7 {[%clk 0:01:06.7]} 24. Qe6+ {[%clk 0:00:50.2]} 24... Kd8 {[%clk
0:01:04.8]} 25. Qd7# {[%clk 0:00:51.1]} 1-0

[Event "*** SCC Grand Prix: Titled Tuesday Blitz"]
[Site "Chess.com"]
[Date "2020.10.13"]
[Round "6"]
[White "Alindsay211"]
[Black "Kaslask"]
[Result "1-0"]
[WhiteElo "2428"]
[BlackElo "2269"]
[TimeControl "180+1"]
[EndTime "11:05:09 PDT"]
[Termination "Alindsay211 won by resignation"]

1. e4 {[%clk 0:03:00.9]} 1... c5 {[%clk 0:02:58.6]} 2. Nf3 {[%clk 0:03:00.7]}
2... e6 {[%clk 0:02:58.7]} 3. d4 {[%clk 0:03:01.2]} 3... cxd4 {[%clk 0:02:58.9]}
4. Nxd4 {[%clk 0:03:01.7]} 4... Nf6 {[%clk 0:02:59.4]} 5. Nc3 {[%clk 0:03:00]}
5... d6 {[%clk 0:02:59.3]} 6. g4 {[%clk 0:02:54.1]} 6... h6 {[%clk 0:02:58.5]}
7. h4 {[%clk 0:02:52.9]} 7... Nc6 {[%clk 0:02:55.6]} 8. Rg1 {[%clk 0:02:46.9]}
8... Nd7 {[%clk 0:02:37.8]} 9. g5 {[%clk 0:02:39.4]} 9... hxg5 {[%clk
0:02:36.3]} 10. hxg5 {[%clk 0:02:38]} 10... g6 {[%clk 0:02:35.8]} 11. Be3 {[%clk
0:02:26.7]} 11... a6 {[%clk 0:02:32.8]} 12. Qd2 {[%clk 0:02:20.8]} 12... Qc7
{[%clk 0:02:20.6]} 13. O-O-O {[%clk 0:02:19]} 13... b5 {[%clk 0:02:15.7]} 14.
Nxc6 {[%clk 0:02:14]} 14... Qxc6 {[%clk 0:02:14.6]} 15. Bd4 {[%clk 0:02:12.1]}
15... Rh2 {[%clk 0:02:11.3]} 16. a3 {[%clk 0:02:03.4]} 16... Bb7 {[%clk
0:02:09.6]} 17. Kb1 {[%clk 0:01:55.3]} 17... Nc5 {[%clk 0:02:07.2]} 18. Re1
{[%clk 0:01:50.7]} 18... Rc8 {[%clk 0:02:03.8]} 19. Bg2 {[%clk 0:01:44.9]} 19...
Qc7 {[%clk 0:01:55.5]} 20. f4 {[%clk 0:01:37.5]} 20... e5 {[%clk 0:01:49.2]} 21.
Bf2 {[%clk 0:01:32.2]} 21... Na4 {[%clk 0:01:39.4]} 22. Nxa4 {[%clk 0:01:30.8]}
22... bxa4 {[%clk 0:01:38.7]} 23. Bg3 {[%clk 0:01:28.9]} 23... Rh7 {[%clk
0:01:37]} 24. Rd1 {[%clk 0:01:27.7]} 24... Be7 {[%clk 0:01:31.9]} 25. fxe5
{[%clk 0:01:24.3]} 25... dxe5 {[%clk 0:01:31]} 26. Bf3 {[%clk 0:01:20.2]} 26...
Rb8 {[%clk 0:01:29.8]} 27. Rh1 {[%clk 0:01:13.8]} 27... Rxh1 {[%clk 0:01:27.3]}
28. Rxh1 {[%clk 0:01:13.2]} 28... Bc6 {[%clk 0:01:26.4]} 29. Rh8+ {[%clk
0:01:08.3]} 29... Bf8 {[%clk 0:01:26.1]} 30. Qc3 {[%clk 0:01:03.3]} 30... Rb5
{[%clk 0:01:20.8]} 31. Be2 {[%clk 0:00:58.9]} 31... Rc5 {[%clk 0:01:19.5]} 32.
Qxc5 {[%clk 0:00:52.8]} 1-0

[Event "*** SCC Grand Prix: Titled Tuesday Blitz"]
[Site "Chess.com"]
[Date "2020.10.13"]
[Round "6"]
[White "ailime26"]
[Black "Mbneu"]
[Result "0-1"]
[WhiteElo "1873"]
[BlackElo "2247"]
[TimeControl "180+1"]
[EndTime "11:05:14 PDT"]
[Termination "Mbneu won by resignation"]

1. e4 {[%clk 0:03:00.9]} 1... c5 {[%clk 0:02:59]} 2. Nf3 {[%clk 0:02:54.1]} 2...
Nf6 {[%clk 0:02:58]} 3. d4 {[%clk 0:02:55]} 3... Nxe4 {[%clk 0:02:57.7]} 4. dxc5
{[%clk 0:02:48.5]} 4... Nxc5 {[%clk 0:02:57.1]} 5. Be3 {[%clk 0:02:36.7]} 5...
e6 {[%clk 0:02:55.7]} 6. Nc3 {[%clk 0:02:35.3]} 6... d5 {[%clk 0:02:54.5]} 7.
Nd4 {[%clk 0:02:30.5]} 7... Be7 {[%clk 0:02:53.1]} 8. Be2 {[%clk 0:02:27.2]}
8... O-O {[%clk 0:02:51.2]} 9. O-O {[%clk 0:02:26.1]} 9... a6 {[%clk 0:02:49.5]}
10. a3 {[%clk 0:02:25.5]} 10... e5 {[%clk 0:02:44]} 11. Nf3 {[%clk 0:02:05.3]}
11... d4 {[%clk 0:02:42.7]} 12. Nxd4 {[%clk 0:01:53.4]} 12... exd4 {[%clk
0:02:41.6]} 13. Bxd4 {[%clk 0:01:54.3]} 13... Nc6 {[%clk 0:02:38.3]} 14. Bxc5
{[%clk 0:01:50]} 14... Qxd1 {[%clk 0:02:36.8]} 15. Raxd1 {[%clk 0:01:49]} 15...
Bxc5 {[%clk 0:02:36.3]} 16. Ne4 {[%clk 0:01:49.2]} 16... Be7 {[%clk 0:02:33.4]}
17. Bf3 {[%clk 0:01:47.3]} 17... Be6 {[%clk 0:02:32.6]} 18. b3 {[%clk
0:01:45.1]} 18... Rfd8 {[%clk 0:02:17.4]} 19. c4 {[%clk 0:01:42.2]} 19... Bxa3
{[%clk 0:02:15.2]} 20. Nc3 {[%clk 0:01:34]} 20... Rxd1 {[%clk 0:02:10.8]} 21.
Rxd1 {[%clk 0:01:33.6]} 21... Rd8 {[%clk 0:02:11.1]} 22. Bd5 {[%clk 0:01:27.7]}
22... Bb4 {[%clk 0:02:06.3]} 23. Ne4 {[%clk 0:01:10.3]} 23... Ne7 {[%clk
0:01:54.4]} 24. f4 {[%clk 0:00:14.3]} 24... Bxd5 {[%clk 0:01:50.5]} 25. cxd5
{[%clk 0:00:11.9]} 25... Rxd5 {[%clk 0:01:48.8]} 26. Re1 {[%clk 0:00:05.6]}
26... Bxe1 {[%clk 0:01:47.4]} 0-1